[Event "*** Titled Tuesday Blitz"]
[Site "Chess.com"]
[Date "2018.10.02"]
[Round "8"]
[White "Shant_Sargsyan"]
[Black "tigra"]
[Result "0-1"]
[WhiteElo "2896"]
[BlackElo "2793"]
[TimeControl "180+2"]
[EndTime "14:48:37 PDT"]
[Termination "tigra won by checkmate"]

1. d4 {[%clk 0:03:01.9]} 1... Nf6 {[%clk 0:03:00.6]} 2. Nf3 {[%clk 0:03:02.3]}
2... g6 {[%clk 0:03:01.5]} 3. g3 {[%clk 0:03:03.4]} 3... Bg7 {[%clk 0:03:02.5]}
4. Bg2 {[%clk 0:03:05.3]} 4... O-O {[%clk 0:03:04]} 5. c4 {[%clk 0:03:06.5]}
5... d5 {[%clk 0:03:04.9]} 6. cxd5 {[%clk 0:03:06.9]} 6... Nxd5 {[%clk
0:03:06.8]} 7. O-O {[%clk 0:03:08]} 7... Nb6 {[%clk 0:03:08.1]} 8. Nc3 {[%clk
0:03:08.8]} 8... Nc6 {[%clk 0:03:08.6]} 9. e3 {[%clk 0:03:10.1]} 9... a5 {[%clk
0:03:09.3]} 10. b3 {[%clk 0:03:04.5]} 10... e5 {[%clk 0:03:06.9]} 11. dxe5
{[%clk 0:03:01.9]} 11... Nxe5 {[%clk 0:03:07.1]} 12. Nxe5 {[%clk 0:03:03.8]}
12... Bxe5 {[%clk 0:03:07.6]} 13. Bb2 {[%clk 0:03:05.4]} 13... Qxd1 {[%clk
0:02:55.4]} 14. Rfxd1 {[%clk 0:03:01.7]} 14... c6 {[%clk 0:02:52.4]} 15. f4
{[%clk 0:02:57.8]} 15... Bg7 {[%clk 0:02:52.8]} 16. e4 {[%clk 0:02:58.7]} 16...
Bg4 {[%clk 0:02:51.4]} 17. Rdc1 {[%clk 0:02:48.2]} 17... Rfd8 {[%clk 0:02:47.7]}
18. Rc2 {[%clk 0:02:36.7]} 18... a4 {[%clk 0:02:42.8]} 19. Re1 {[%clk
0:02:26.4]} 19... axb3 {[%clk 0:02:41.3]} 20. axb3 {[%clk 0:02:28.3]} 20... Be6
{[%clk 0:02:38.5]} 21. b4 {[%clk 0:02:16.5]} 21... Bb3 {[%clk 0:02:29.9]} 22.
Rce2 {[%clk 0:02:11.2]} 22... Bc4 {[%clk 0:02:28.6]} 23. Rc2 {[%clk 0:02:07.4]}
23... Bd3 {[%clk 0:02:28.4]} 24. Rf2 {[%clk 0:01:38]} 24... Bd4 {[%clk
0:02:28.6]} 25. Nd1 {[%clk 0:01:11]} 25... Bxf2+ {[%clk 0:02:28.8]} 26. Nxf2
{[%clk 0:01:12.9]} 26... f5 {[%clk 0:02:14.9]} 27. Bf6 {[%clk 0:01:11.7]} 27...
Rd7 {[%clk 0:02:11]} 28. e5 {[%clk 0:01:12.9]} 28... Bc4 {[%clk 0:02:08.6]} 29.
g4 {[%clk 0:01:06.9]} 29... Be6 {[%clk 0:02:06.2]} 30. gxf5 {[%clk 0:01:07.8]}
30... Bxf5 {[%clk 0:02:06.8]} 31. Ne4 {[%clk 0:00:57.3]} 31... Bxe4 {[%clk
0:02:07.4]} 32. Bxe4 {[%clk 0:00:59.2]} 32... Rf8 {[%clk 0:01:57.6]} 33. f5
{[%clk 0:00:59.3]} 33... Rd2 {[%clk 0:01:04.2]} 34. fxg6 {[%clk 0:00:56.9]}
34... hxg6 {[%clk 0:01:04.4]} 35. e6 {[%clk 0:00:25.3]} 35... Rxf6 {[%clk
0:00:40.5]} 36. e7 {[%clk 0:00:25.9]} 36... Re6 {[%clk 0:00:41.6]} 37. Bd5
{[%clk 0:00:26.6]} 37... Nxd5 {[%clk 0:00:39.7]} 38. Rxe6 {[%clk 0:00:27.3]}
38... Nc7 {[%clk 0:00:39.8]} 39. e8=Q+ {[%clk 0:00:22.1]} 39... Nxe8 {[%clk
0:00:40.8]} 40. Rxe8+ {[%clk 0:00:24]} 40... Kf7 {[%clk 0:00:41.7]} 41. Rb8
{[%clk 0:00:25]} 41... Rd7 {[%clk 0:00:42]} 42. Kf2 {[%clk 0:00:21.6]} 42... Ke6
{[%clk 0:00:43.2]} 43. Ke3 {[%clk 0:00:22.7]} 43... Kd5 {[%clk 0:00:40]} 44. Kd3
{[%clk 0:00:23.6]} 44... Rh7 {[%clk 0:00:31.7]} 45. Rd8+ {[%clk 0:00:22.3]}
45... Ke5 {[%clk 0:00:32.9]} 46. Re8+ {[%clk 0:00:18.8]} 46... Kf5 {[%clk
0:00:33.8]} 47. Re2 {[%clk 0:00:19.7]} 47... Rh4 {[%clk 0:00:34]} 48. Kc3 {[%clk
0:00:20.8]} 48... g5 {[%clk 0:00:25.9]} 49. Rf2+ {[%clk 0:00:15.9]} 49... Rf4
{[%clk 0:00:26.3]} 50. Re2 {[%clk 0:00:16.3]} 50... Kg4 {[%clk 0:00:25.8]} 51.
Re7 {[%clk 0:00:17]} 51... b5 {[%clk 0:00:24.4]} 52. Re6 {[%clk 0:00:17.9]}
52... Rc4+ {[%clk 0:00:25.2]} 53. Kb3 {[%clk 0:00:18.7]} 53... Kh3 {[%clk
0:00:24.4]} 54. Rh6+ {[%clk 0:00:16.2]} 54... Rh4 {[%clk 0:00:14.6]} 55. Rxc6
{[%clk 0:00:12.1]} 55... Kxh2 {[%clk 0:00:14.5]} 56. Rc2+ {[%clk 0:00:13.6]}
56... Kh3 {[%clk 0:00:13.6]} 57. Rc3+ {[%clk 0:00:13.1]} 57... Kg2 {[%clk
0:00:11.5]} 58. Rc5 {[%clk 0:00:14.2]} 58... g4 {[%clk 0:00:12.4]} 59. Rxb5
{[%clk 0:00:15]} 59... g3 {[%clk 0:00:13.9]} 60. Rg5 {[%clk 0:00:16.4]} 60...
Kf3 {[%clk 0:00:14.6]} 61. b5 {[%clk 0:00:12.9]} 61... g2 {[%clk 0:00:15.1]} 62.
b6 {[%clk 0:00:10.3]} 62... Rg4 {[%clk 0:00:15.7]} 63. Rf5+ {[%clk 0:00:07.9]}
63... Ke3 {[%clk 0:00:11.8]} 64. Re5+ {[%clk 0:00:06.9]} 64... Kd2 {[%clk
0:00:09.7]} 65. Rd5+ {[%clk 0:00:07.1]} 65... Kc1 {[%clk 0:00:09]} 66. b7 {[%clk
0:00:06.1]} 66... g1=Q {[%clk 0:00:09.3]} 67. b8=Q {[%clk 0:00:07.6]} 67... Qe3+
{[%clk 0:00:10.2]} 68. Ka2 {[%clk 0:00:04.9]} 68... Ra4# {[%clk 0:00:11]} 0-1

[Event "*** Titled Tuesday Blitz"]
[Site "Chess.com"]
[Date "2018.10.02"]
[Round "8"]
[White "sergoy"]
[Black "jerom555888"]
[Result "1/2-1/2"]
[WhiteElo "2786"]
[BlackElo "2711"]
[TimeControl "180+2"]
[EndTime "14:48:53 PDT"]
[Termination "Game drawn by repetition"]

1. d3 {[%clk 0:02:40.5]} 1... d5 {[%clk 0:03:00.3]} 2. Nf3 {[%clk 0:02:41.3]}
2... Nc6 {[%clk 0:03:00.8]} 3. g3 {[%clk 0:02:41.5]} 3... e5 {[%clk 0:03:02]} 4.
Bg2 {[%clk 0:02:42.2]} 4... f6 {[%clk 0:03:01.9]} 5. O-O {[%clk 0:02:42.5]} 5...
Be6 {[%clk 0:03:03.1]} 6. a3 {[%clk 0:02:42.1]} 6... Qd7 {[%clk 0:03:02.3]} 7.
b4 {[%clk 0:02:43.1]} 7... Bh3 {[%clk 0:03:01.4]} 8. b5 {[%clk 0:02:43.1]} 8...
Nd8 {[%clk 0:02:59.6]} 9. c4 {[%clk 0:02:44.4]} 9... Bxg2 {[%clk 0:02:59.4]} 10.
Kxg2 {[%clk 0:02:45.4]} 10... Ne7 {[%clk 0:02:54]} 11. Nc3 {[%clk 0:02:45.8]}
11... d4 {[%clk 0:02:54.1]} 12. Ne4 {[%clk 0:02:46.4]} 12... Ne6 {[%clk
0:02:54.1]} 13. a4 {[%clk 0:02:36.4]} 13... Ng6 {[%clk 0:02:50.5]} 14. a5 {[%clk
0:02:30.9]} 14... h6 {[%clk 0:02:41.8]} 15. a6 {[%clk 0:02:19.7]} 15... b6
{[%clk 0:02:42.5]} 16. Ba3 {[%clk 0:02:19.6]} 16... Bxa3 {[%clk 0:02:31.9]} 17.
Rxa3 {[%clk 0:02:20.2]} 17... f5 {[%clk 0:02:33.8]} 18. Ned2 {[%clk 0:02:20]}
18... Nc5 {[%clk 0:02:34.3]} 19. Nb3 {[%clk 0:02:20.3]} 19... Nxb3 {[%clk
0:02:30.6]} 20. Rxb3 {[%clk 0:02:18.8]} 20... c5 {[%clk 0:02:32.1]} 21. bxc6
{[%clk 0:02:17.9]} 21... Qxc6 {[%clk 0:02:33]} 22. Rb5 {[%clk 0:02:19]} 22...
O-O {[%clk 0:02:30.5]} 23. Kg1 {[%clk 0:02:20.1]} 23... Rfe8 {[%clk 0:02:22.7]}
24. Qb3 {[%clk 0:02:20.5]} 24... Kh7 {[%clk 0:02:14]} 25. Rc1 {[%clk 0:02:19.6]}
25... Rad8 {[%clk 0:02:09.9]} 26. c5 {[%clk 0:02:18]} 26... e4 {[%clk
0:02:10.9]} 27. Nd2 {[%clk 0:01:51.6]} 27... Rd5 {[%clk 0:01:53]} 28. dxe4
{[%clk 0:01:46.6]} 28... fxe4 {[%clk 0:01:53.5]} 29. Qb1 {[%clk 0:01:47.8]}
29... Rxc5 {[%clk 0:01:44.5]} 30. Rcxc5 {[%clk 0:01:34.9]} 30... bxc5 {[%clk
0:01:46.4]} 31. Rb7 {[%clk 0:01:36.8]} 31... Qxa6 {[%clk 0:01:41.2]} 32. Nxe4
{[%clk 0:01:37.1]} 32... c4 {[%clk 0:01:22.8]} 33. h4 {[%clk 0:01:35.2]} 33...
d3 {[%clk 0:01:18.6]} 34. exd3 {[%clk 0:01:33.3]} 34... cxd3 {[%clk 0:01:19.7]}
35. Nc5 {[%clk 0:01:21.4]} 35... Qc6 {[%clk 0:00:52.2]} 36. Nxd3 {[%clk
0:01:20.9]} 36... Qe4 {[%clk 0:00:49.3]} 37. Rb4 {[%clk 0:01:13.3]} 37... Qf5
{[%clk 0:00:28.9]} 38. Rb5 {[%clk 0:01:12.4]} 38... Qe4 {[%clk 0:00:29.6]} 39.
h5 {[%clk 0:01:04.5]} 39... Ne5 {[%clk 0:00:30.4]} 40. Nf4 {[%clk 0:01:05.9]}
40... Nf3+ {[%clk 0:00:25.9]} 41. Kg2 {[%clk 0:01:03.1]} 41... Ne1+ {[%clk
0:00:24.9]} 42. Kh3 {[%clk 0:00:57.2]} 42... Qxb1 {[%clk 0:00:19.4]} 43. Rxb1
{[%clk 0:00:57.7]} 43... Nf3 {[%clk 0:00:20.4]} 44. Rb7 {[%clk 0:00:58.2]} 44...
a5 {[%clk 0:00:18.9]} 45. Ra7 {[%clk 0:00:58.4]} 45... Ng5+ {[%clk 0:00:20]} 46.
Kg2 {[%clk 0:00:59.2]} 46... Ne6 {[%clk 0:00:21.6]} 47. Nd5 {[%clk 0:00:56]}
47... Rd8 {[%clk 0:00:21.7]} 48. Ne7 {[%clk 0:00:55.2]} 48... Re8 {[%clk
0:00:21.6]} 49. Ng6 {[%clk 0:00:54.2]} 49... Nf8 {[%clk 0:00:21.1]} 50. Nh4
{[%clk 0:00:54.6]} 50... Ne6 {[%clk 0:00:21.2]} 51. Rxa5 {[%clk 0:00:55]} 51...
Rf8 {[%clk 0:00:22.9]} 52. f4 {[%clk 0:00:52.7]} 52... Rf6 {[%clk 0:00:23.3]}
53. Ra7 {[%clk 0:00:49]} 53... Kg8 {[%clk 0:00:23.8]} 54. Ng6 {[%clk 0:00:49.5]}
54... Nd4 {[%clk 0:00:21.5]} 55. g4 {[%clk 0:00:48.3]} 55... Rd6 {[%clk
0:00:20.8]} 56. f5 {[%clk 0:00:45.3]} 56... Rd8 {[%clk 0:00:21.9]} 57. Kg3
{[%clk 0:00:45.8]} 57... Nc6 {[%clk 0:00:23]} 58. Rc7 {[%clk 0:00:46.9]} 58...
Nd4 {[%clk 0:00:21.7]} 59. Nf4 {[%clk 0:00:48.1]} 59... Re8 {[%clk 0:00:21.4]}
60. Rd7 {[%clk 0:00:48.4]} 60... Ne2+ {[%clk 0:00:22.5]} 61. Nxe2 {[%clk
0:00:46.8]} 61... Rxe2 {[%clk 0:00:24.4]} 62. Kf4 {[%clk 0:00:48.5]} 62... Rf2+
{[%clk 0:00:25.1]} 63. Ke5 {[%clk 0:00:47.6]} 63... Rg2 {[%clk 0:00:26.2]} 64.
Kf4 {[%clk 0:00:46.5]} 64... Rf2+ {[%clk 0:00:27]} 65. Kg3 {[%clk 0:00:48]}
65... Rf1 {[%clk 0:00:28.2]} 66. Ra7 {[%clk 0:00:47.8]} 66... Kf8 {[%clk
0:00:29.1]} 67. Kg2 {[%clk 0:00:48]} 67... Rf4 {[%clk 0:00:29.6]} 68. Kg3 {[%clk
0:00:49.4]} 68... Rf1 {[%clk 0:00:31.2]} 69. Rc7 {[%clk 0:00:50.4]} 69... Kg8
{[%clk 0:00:32.1]} 70. Rc4 {[%clk 0:00:51.1]} 70... Kf7 {[%clk 0:00:32.1]} 71.
Kg2 {[%clk 0:00:52.6]} 71... Rd1 {[%clk 0:00:31.8]} 72. Kf3 {[%clk 0:00:53.9]}
72... Rg1 {[%clk 0:00:31.8]} 73. Kf4 {[%clk 0:00:54.2]} 73... Re1 {[%clk
0:00:32.6]} 74. Re4 {[%clk 0:00:54.3]} 74... Ra1 {[%clk 0:00:31.9]} 75. Rb4
{[%clk 0:00:53.1]} 75... Re1 {[%clk 0:00:32.1]} 76. Re4 {[%clk 0:00:53.5]} 76...
Ra1 {[%clk 0:00:32.6]} 77. Re3 {[%clk 0:00:52.1]} 77... Ra4+ {[%clk 0:00:31.5]}
78. Kf3 {[%clk 0:00:53.5]} 78... Ra1 {[%clk 0:00:31.4]} 79. Rb3 {[%clk
0:00:53.2]} 79... Re1 {[%clk 0:00:30.8]} 80. Rb7+ {[%clk 0:00:54.2]} 80... Kf8
{[%clk 0:00:27.1]} 81. Kf4 {[%clk 0:00:54.6]} 81... Re2 {[%clk 0:00:25.1]} 82.
Ra7 {[%clk 0:00:47.6]} 82... Re1 {[%clk 0:00:25.8]} 83. Ra6 {[%clk 0:00:43.4]}
83... Kf7 {[%clk 0:00:25]} 84. Ra7+ {[%clk 0:00:43.9]} 84... Kf8 {[%clk
0:00:26.2]} 85. Ra4 {[%clk 0:00:45.8]} 85... Kf7 {[%clk 0:00:26.5]} 86. Re4
{[%clk 0:00:46.8]} 1/2-1/2

[Event "*** Titled Tuesday Blitz"]
[Site "Chess.com"]
[Date "2018.10.02"]
[Round "8"]
[White "nearestway"]
[Black "NemtsevIgor"]
[Result "1/2-1/2"]
[WhiteElo "2526"]
[BlackElo "2378"]
[TimeControl "180+2"]
[EndTime "14:49:02 PDT"]
[Termination "Game drawn by agreement"]

1. c4 {[%clk 0:03:01.9]} 1... c6 {[%clk 0:03:00]} 2. d4 {[%clk 0:03:02.1]} 2...
d6 {[%clk 0:03:01.3]} 3. e4 {[%clk 0:03:01.6]} 3... Nd7 {[%clk 0:03:02.2]} 4.
Nc3 {[%clk 0:03:01.9]} 4... h6 {[%clk 0:03:03.5]} 5. Be2 {[%clk 0:03:03.2]} 5...
g5 {[%clk 0:03:03.7]} 6. Be3 {[%clk 0:03:04.3]} 6... Bg7 {[%clk 0:03:03.4]} 7.
h4 {[%clk 0:03:05.4]} 7... Qa5 {[%clk 0:02:43.3]} 8. Qd2 {[%clk 0:03:05]} 8...
gxh4 {[%clk 0:02:31.8]} 9. Rxh4 {[%clk 0:03:01.5]} 9... a6 {[%clk 0:02:28.2]}
10. Nf3 {[%clk 0:02:43.2]} 10... b5 {[%clk 0:02:24.7]} 11. Kf1 {[%clk 0:02:37]}
11... Nf8 {[%clk 0:02:20.6]} 12. Rh1 {[%clk 0:02:24.3]} 12... Ng6 {[%clk
0:02:08.2]} 13. d5 {[%clk 0:02:15.8]} 13... c5 {[%clk 0:02:02.8]} 14. cxb5
{[%clk 0:02:16.1]} 14... h5 {[%clk 0:01:49.8]} 15. bxa6 {[%clk 0:02:10.2]} 15...
Bxa6 {[%clk 0:01:50.1]} 16. Bxa6 {[%clk 0:02:11.3]} 16... Qxa6+ {[%clk
0:01:50.6]} 17. Qe2 {[%clk 0:02:12.7]} 17... Nf6 {[%clk 0:01:42.3]} 18. Nd2
{[%clk 0:02:06.1]} 18... Ng4 {[%clk 0:01:37.6]} 19. Nc4 {[%clk 0:01:48.4]} 19...
Rb8 {[%clk 0:01:31.4]} 20. Nd1 {[%clk 0:01:31.1]} 20... Nxe3+ {[%clk 0:01:26.5]}
21. Ndxe3 {[%clk 0:01:26]} 21... Nf4 {[%clk 0:01:19.5]} 22. Qc2 {[%clk
0:01:21.8]} 22... Rxb2 {[%clk 0:01:16.5]} 23. Qd1 {[%clk 0:01:15.6]} 23... Rb4
{[%clk 0:01:10.4]} 24. Rc1 {[%clk 0:01:13.7]} 24... Qxa2 {[%clk 0:01:08.9]} 25.
g3 {[%clk 0:01:14.8]} 25... Ng6 {[%clk 0:01:06.7]} 26. Rxh5 {[%clk 0:00:58.5]}
26... Rxh5 {[%clk 0:01:00]} 27. Qxh5 {[%clk 0:00:59.4]} 27... Bd4 {[%clk
0:00:56]} 28. Qg4 {[%clk 0:00:53.6]} 28... Kf8 {[%clk 0:00:53.4]} 29. Qc8+
{[%clk 0:00:51.6]} 29... Kg7 {[%clk 0:00:53.9]} 30. Nf5+ {[%clk 0:00:51.2]}
30... Kf6 {[%clk 0:00:54.7]} 31. Nxd4 {[%clk 0:00:50]} 31... cxd4 {[%clk
0:00:55.9]} 32. Kg2 {[%clk 0:00:36.6]} 32... Qe2 {[%clk 0:00:47.1]} 33. Qf5+
{[%clk 0:00:30.1]} 33... Kg7 {[%clk 0:00:46.3]} 34. Qf3 {[%clk 0:00:25.5]} 34...
Qxf3+ {[%clk 0:00:42.2]} 35. Kxf3 {[%clk 0:00:27.4]} 35... Rxc4 {[%clk
0:00:43.3]} 36. Rd1 {[%clk 0:00:27.8]} 36... Rc3+ {[%clk 0:00:43.8]} 37. Kg2
{[%clk 0:00:28.5]} 37... d3 {[%clk 0:00:43.7]} 38. f4 {[%clk 0:00:29.6]} 38...
e5 {[%clk 0:00:30.9]} 39. dxe6 {[%clk 0:00:28.5]} 39... fxe6 {[%clk 0:00:31.8]}
40. Kf2 {[%clk 0:00:30.1]} 40... e5 {[%clk 0:00:29.8]} 41. Ke3 {[%clk
0:00:29.7]} 41... d2+ {[%clk 0:00:27.3]} 42. Kxd2 {[%clk 0:00:29.1]} 42... Rxg3
{[%clk 0:00:28.9]} 43. fxe5 {[%clk 0:00:29.1]} 43... dxe5 {[%clk 0:00:29.3]} 44.
Ra1 {[%clk 0:00:28.4]} 44... Kf6 {[%clk 0:00:29.5]} 45. Ke2 {[%clk 0:00:26.9]}
45... Nf4+ {[%clk 0:00:28.7]} 46. Kf2 {[%clk 0:00:28.3]} 46... Rb3 {[%clk
0:00:28.4]} 47. Ra8 {[%clk 0:00:27.7]} 47... Nd3+ {[%clk 0:00:26.8]} 48. Kg3
{[%clk 0:00:25.7]} 48... Nc5+ {[%clk 0:00:26.6]} 49. Kg4 {[%clk 0:00:26.9]}
49... Nxe4 {[%clk 0:00:27]} 50. Ra6+ {[%clk 0:00:28.2]} 50... Kf7 {[%clk
0:00:24]} 51. Kf5 {[%clk 0:00:29.7]} 51... Nc5 {[%clk 0:00:23.3]} 52. Ra7+
{[%clk 0:00:30.8]} 52... Nb7 {[%clk 0:00:21.5]} 53. Kxe5 {[%clk 0:00:31.6]}
53... Ke7 {[%clk 0:00:22.6]} 54. Ra1 {[%clk 0:00:31]} 54... Kd7 {[%clk
0:00:23.1]} 55. Rh1 {[%clk 0:00:32]} 55... Kc6 {[%clk 0:00:23.9]} 56. Rh6+
{[%clk 0:00:32.6]} 56... Kc5 {[%clk 0:00:23.7]} 57. Kf4 {[%clk 0:00:29.8]} 57...
Nd6 {[%clk 0:00:24.5]} 58. Rh8 {[%clk 0:00:30.5]} 58... Kd5 {[%clk 0:00:25.2]}
59. Rd8 {[%clk 0:00:28.4]} 59... Rb4+ {[%clk 0:00:25.9]} 60. Kf3 {[%clk
0:00:28.6]} 60... Ke5 {[%clk 0:00:26]} 61. Ke2 {[%clk 0:00:28.3]} 61... Nf5
{[%clk 0:00:21.9]} 62. Re8+ {[%clk 0:00:29.2]} 62... Kf4 {[%clk 0:00:22.8]} 63.
Kd2 {[%clk 0:00:28.6]} 63... Ng3 {[%clk 0:00:20.8]} 64. Kc3 {[%clk 0:00:27.9]}
64... Ra4 {[%clk 0:00:21.1]} 65. Kb3 {[%clk 0:00:28.8]} 65... Ra6 {[%clk
0:00:21.9]} 66. Kb4 {[%clk 0:00:29.1]} 66... Rd6 {[%clk 0:00:22.9]} 67. Kc4
{[%clk 0:00:28.1]} 67... Rd1 {[%clk 0:00:24.4]} 68. Kc3 {[%clk 0:00:28.4]} 68...
Ne4+ {[%clk 0:00:25.4]} 69. Kc2 {[%clk 0:00:29.5]} 69... Rd7 {[%clk 0:00:26.2]}
70. Rf8+ {[%clk 0:00:29.6]} 70... Ke3 {[%clk 0:00:27.3]} 71. Re8 {[%clk
0:00:30.6]} 71... Rc7+ {[%clk 0:00:28.3]} 72. Kb3 {[%clk 0:00:31.5]} 72... Kd4
{[%clk 0:00:27.1]} 73. Rd8+ {[%clk 0:00:32]} 73... Kc5 {[%clk 0:00:28.3]} 74.
Rh8 {[%clk 0:00:30.3]} 74... Rb7+ {[%clk 0:00:28.5]} 75. Kc2 {[%clk 0:00:31.2]}
75... Kc4 {[%clk 0:00:29.4]} 76. Rc8+ {[%clk 0:00:31.4]} 76... Nc5 {[%clk
0:00:30.6]} 77. Kd2 {[%clk 0:00:32]} 77... Re7 {[%clk 0:00:31.6]} 78. Rc6 {[%clk
0:00:27.7]} 78... Rh7 {[%clk 0:00:30.9]} 79. Rc8 {[%clk 0:00:28.2]} 79... Rh3
{[%clk 0:00:30.6]} 80. Ke2 {[%clk 0:00:28.7]} 80... Kd4 {[%clk 0:00:28.8]} 81.
Rd8+ {[%clk 0:00:25.5]} 81... Ke5 {[%clk 0:00:26.6]} 82. Re8+ {[%clk 0:00:26.5]}
82... Ne6 {[%clk 0:00:27.8]} 83. Kd2 {[%clk 0:00:27]} 1/2-1/2

[Event "*** Titled Tuesday Blitz"]
[Site "Chess.com"]
[Date "2018.10.02"]
[Round "8"]
[White "Rashad_Zeynalli"]
[Black "sergeikim"]
[Result "1-0"]
[WhiteElo "2341"]
[BlackElo "2418"]
[TimeControl "180+2"]
[EndTime "14:50:07 PDT"]
[Termination "Rashad_Zeynalli won on time"]

1. e4 {[%clk 0:03:01.9]} 1... e5 {[%clk 0:03:00.6]} 2. Nf3 {[%clk 0:03:00.6]}
2... Nc6 {[%clk 0:03:01.3]} 3. Bb5 {[%clk 0:02:55]} 3... a6 {[%clk 0:03:02.1]}
4. Ba4 {[%clk 0:02:55.4]} 4... Nf6 {[%clk 0:03:02.7]} 5. O-O {[%clk 0:02:56.2]}
5... Be7 {[%clk 0:03:03.9]} 6. Re1 {[%clk 0:02:56.3]} 6... b5 {[%clk 0:03:04.8]}
7. Bb3 {[%clk 0:02:56.9]} 7... O-O {[%clk 0:03:06.4]} 8. h3 {[%clk 0:02:55.7]}
8... Bb7 {[%clk 0:03:06.5]} 9. c3 {[%clk 0:02:55.2]} 9... d5 {[%clk 0:03:07.3]}
10. exd5 {[%clk 0:02:55.4]} 10... Nxd5 {[%clk 0:03:08.6]} 11. Nxe5 {[%clk
0:02:56]} 11... Nxe5 {[%clk 0:03:09.3]} 12. Rxe5 {[%clk 0:02:57.9]} 12... Nf4
{[%clk 0:03:10.1]} 13. d4 {[%clk 0:02:39.7]} 13... Nxg2 {[%clk 0:03:09.8]} 14.
d5 {[%clk 0:01:48]} 14... Nh4 {[%clk 0:03:04]} 15. Nd2 {[%clk 0:01:46.9]} 15...
Bd6 {[%clk 0:02:57.2]} 16. Rh5 {[%clk 0:01:38.7]} 16... Qe7 {[%clk 0:02:29.2]}
17. Nf1 {[%clk 0:01:28.8]} 17... Ng6 {[%clk 0:01:51.8]} 18. Bg5 {[%clk
0:01:06.1]} 18... f6 {[%clk 0:01:48.6]} 19. Be3 {[%clk 0:01:05.4]} 19... Ne5
{[%clk 0:01:45]} 20. Qc2 {[%clk 0:00:57.6]} 20... g6 {[%clk 0:01:43.1]} 21. Rh6
{[%clk 0:00:58.5]} 21... Rae8 {[%clk 0:01:35.9]} 22. Nh2 {[%clk 0:00:56.1]}
22... f5 {[%clk 0:01:21.6]} 23. Bf4 {[%clk 0:00:28.8]} 23... Nf7 {[%clk
0:01:18.3]} 24. Qd2 {[%clk 0:00:17.1]} 24... Nxh6 {[%clk 0:00:49.7]} 25. Bxh6
{[%clk 0:00:19]} 25... Rf7 {[%clk 0:00:50.2]} 26. Nf3 {[%clk 0:00:20.4]} 26...
f4 {[%clk 0:00:41.4]} 27. Ng5 {[%clk 0:00:15.4]} 27... Qe2 {[%clk 0:00:33.7]}
28. Qxe2 {[%clk 0:00:14.9]} 28... Rxe2 {[%clk 0:00:33.8]} 29. Nxf7 {[%clk
0:00:15.8]} 29... Kxf7 {[%clk 0:00:35]} 30. Rb1 {[%clk 0:00:17.1]} 30... Kf6
{[%clk 0:00:34.5]} 31. h4 {[%clk 0:00:17.4]} 31... Ke5 {[%clk 0:00:32.6]} 32.
Bg7+ {[%clk 0:00:17.6]} 32... Kf5 {[%clk 0:00:31.1]} 33. Kf1 {[%clk 0:00:18.7]}
33... f3 {[%clk 0:00:29.2]} 34. Bd1 {[%clk 0:00:18.9]} 34... Re7 {[%clk
0:00:25.8]} 35. Bd4 {[%clk 0:00:17.5]} 35... Bxd5 {[%clk 0:00:25.6]} 36. Bc2+
{[%clk 0:00:17.7]} 36... Be4 {[%clk 0:00:25.1]} 37. Bxe4+ {[%clk 0:00:18.7]}
37... Rxe4 {[%clk 0:00:24.6]} 38. Rd1 {[%clk 0:00:18.4]} 38... Rxh4 {[%clk
0:00:24.8]} 39. Kg1 {[%clk 0:00:19.8]} 39... Rg4+ {[%clk 0:00:22.3]} 40. Kf1
{[%clk 0:00:21]} 40... h5 {[%clk 0:00:21.9]} 41. Rd3 {[%clk 0:00:20.7]} 41... h4
{[%clk 0:00:15.7]} 42. Rxf3+ {[%clk 0:00:21.2]} 42... Ke4 {[%clk 0:00:15.3]} 43.
Rf7 {[%clk 0:00:21.1]} 43... Kd5 {[%clk 0:00:16]} 44. Rh7 {[%clk 0:00:20.9]}
44... g5 {[%clk 0:00:16.7]} 45. Ke2 {[%clk 0:00:22]} 45... Re4+ {[%clk
0:00:16.8]} 46. Kd3 {[%clk 0:00:23.1]} 46... Re7 {[%clk 0:00:13.7]} 47. Rh5
{[%clk 0:00:22.4]} 47... Bf4 {[%clk 0:00:12.2]} 48. Bf6 {[%clk 0:00:23.4]} 48...
Rd7 {[%clk 0:00:12.5]} 49. Bxg5 {[%clk 0:00:24.4]} 49... Ke6+ {[%clk 0:00:13.3]}
50. Ke2 {[%clk 0:00:23.3]} 50... Rd5 {[%clk 0:00:13.2]} 51. Rh6+ {[%clk
0:00:24.5]} 51... Kf5 {[%clk 0:00:13.5]} 52. Bxf4 {[%clk 0:00:25.9]} 52... Kxf4
{[%clk 0:00:14.6]} 53. Rxh4+ {[%clk 0:00:27.2]} 53... Kg5 {[%clk 0:00:14.9]} 54.
Rh7 {[%clk 0:00:28.6]} 54... c5 {[%clk 0:00:15.1]} 55. f3 {[%clk 0:00:28.4]}
55... Kf4 {[%clk 0:00:15.5]} 56. Rf7+ {[%clk 0:00:28.7]} 56... Ke5 {[%clk
0:00:14.7]} 57. Ke3 {[%clk 0:00:29.6]} 57... c4 {[%clk 0:00:15.2]} 58. Ra7
{[%clk 0:00:28.1]} 58... Rd3+ {[%clk 0:00:15.2]} 59. Ke2 {[%clk 0:00:28.9]}
59... Rd6 {[%clk 0:00:16]} 60. Rh7 {[%clk 0:00:29.5]} 60... Kf4 {[%clk 0:00:16]}
61. Rf7+ {[%clk 0:00:29.6]} 61... Ke5 {[%clk 0:00:16.6]} 62. Re7+ {[%clk
0:00:29.2]} 62... Kf4 {[%clk 0:00:17]} 63. Re4+ {[%clk 0:00:30.2]} 63... Kf5
{[%clk 0:00:17.9]} 64. Rd4 {[%clk 0:00:31.5]} 64... Rh6 {[%clk 0:00:17.7]} 65.
Ke3 {[%clk 0:00:30.1]} 65... Rh2 {[%clk 0:00:17.5]} 66. Rd5+ {[%clk 0:00:31.1]}
66... Ke6 {[%clk 0:00:17.6]} 67. Rd2 {[%clk 0:00:33]} 67... Rh5 {[%clk
0:00:16.8]} 68. f4 {[%clk 0:00:32.9]} 68... Rh1 {[%clk 0:00:14]} 69. Kd4 {[%clk
0:00:31.2]} 69... Kf5 {[%clk 0:00:10.7]} 70. Rf2 {[%clk 0:00:29.7]} 70... Rd1+
{[%clk 0:00:05.7]} 71. Kc5 {[%clk 0:00:30.6]} 71... Rd3 {[%clk 0:00:05.6]} 72.
Kb6 {[%clk 0:00:30.6]} 72... Rd6+ {[%clk 0:00:06.5]} 73. Kc7 {[%clk 0:00:25.2]}
73... Re6 {[%clk 0:00:07.1]} 74. Kb7 {[%clk 0:00:22.3]} 74... Rd6 {[%clk
0:00:07.6]} 75. Ka7 {[%clk 0:00:21.8]} 75... Re6 {[%clk 0:00:08.3]} 76. Kb7
{[%clk 0:00:22.9]} 76... Rd6 {[%clk 0:00:09.4]} 77. Kc7 {[%clk 0:00:23.8]} 77...
Re6 {[%clk 0:00:10.4]} 78. Kd7 {[%clk 0:00:19.8]} 78... Rh6 {[%clk 0:00:09.5]}
79. Rd2 {[%clk 0:00:17.2]} 79... Kxf4 {[%clk 0:00:07.6]} 80. Rd5 {[%clk
0:00:14.8]} 80... Ke3 {[%clk 0:00:07]} 81. Rd4 {[%clk 0:00:15.1]} 81... Rh2
{[%clk 0:00:06.2]} 82. a4 {[%clk 0:00:16.2]} 82... Rxb2 {[%clk 0:00:05.2]} 83.
axb5 {[%clk 0:00:14.1]} 83... axb5 {[%clk 0:00:06.2]} 84. Kc6 {[%clk 0:00:15.5]}
84... Rb3 {[%clk 0:00:06.3]} 85. Rd8 {[%clk 0:00:15.8]} 1-0